bitfinex-derivatives/quotes_ETHF0:USTF0_20250105
["timestamp","ask_amount","ask_price","bid_price","bid_amount"]
[1736109283525,0.24735,3639.5,3639.3,4.53402294]
[1736109283730,3.45515,3639.5,3639.4,0.8327]
[1736109284825,5.65797443,3639.5,3639.4,0.8327]
[1736109285426,5.41062443,3639.5,3639.1,4.28667294]
[1736109285731,0.24736,3639.3,3639.1,4.28667294]
[1736109286127,0.24736,3639.3,3639.0,0.24737]
[1736109286429,0.24738,3639.0,3638.9,0.854]
[1736109286730,2.20282443,3639.2,3638.9,0.854]
[1736109286731,3.45517,3639.1,3638.9,0.854]
[1736109287732,3.2078,3639.1,3638.9,1.10138]
[1736109288831,3.2078,3639.1,3639.0,0.24738]
[1736109289630,0.24738,3639.0,3638.9,0.854]
[1736109289833,3.2078,3639.1,3638.9,1.10138]
[1736109290027,3.2078,3639.1,3638.9,0.854]
[1736109290335,0.24738,3639.0,3638.9,0.854]
[1736109290733,5.14057,3639.1,3638.9,0.854]
[1736109291432,0.24738,3639.0,3638.9,0.854]
[1736109291637,1.93277,3639.1,3638.9,0.854]
[1736109292340,5.14057,3639.1,3638.9,0.854]
[1736109293442,0.24738,3639.0,3638.9,0.854]
[1736109293745,2.20282443,3639.0,3638.6,1.1262]
[1736109293941,0.24739,3638.8,3638.6,1.1262]
[1736109294640,0.24739,3638.8,3638.6,0.8788]
[1736109294837,0.24739,3638.8,3638.5,0.24741]
[1736109294838,3.27492443,3638.7,3638.4,1.11271]
[1736109295043,3.02752443,3638.7,3638.4,0.8653]
[1736109295244,3.02752443,3638.7,3638.5,0.24741]
[1736109296047,3.02752443,3638.7,3638.6,0.2474]
[1736109296344,0.8247,3638.7,3638.6,0.2474]
[1736109296544,0.24739,3638.9,3638.6,0.2474]
[1736109296745,0.8247,3638.8,3638.6,0.2474]
[1736109297237,1.07209,3638.8,3638.6,0.2474]
[1736109297643,0.2474,3638.7,3638.5,0.24741]
[1736109297944,1.07209,3638.8,3638.5,0.24741]
[1736109298347,0.2474,3638.7,3638.5,0.24741]
[1736109298647,1.07209,3638.8,3638.5,0.24741]
[1736109298850,0.24741,3638.6,3638.4,0.8653]
[1736109299150,2.20282443,3638.7,3638.4,0.8653]
[1736109299445,5.41062443,3638.7,3638.4,0.8653]
[1736109299748,5.65802443,3638.7,3638.4,1.11271]
[1736109300249,2.45022443,3638.7,3638.4,1.11271]
[1736109300653,5.65802443,3638.7,3638.4,1.11271]
[1736109301144,5.65802443,3638.7,3638.4,0.24741]
[1736109301338,5.41062443,3638.7,3638.2,0.8792]
[1736109301544,0.24742,3638.4,3638.1,0.24744]
[1736109301947,0.8743,3638.3,3638.2,0.24743]
[1736109302744,5.41062443,3638.7,3638.0,1.7074]
[1736109302745,3.2078,3638.7,3638.0,1.7074]
[1736109302948,3.2078,3638.7,3638.6,0.2474]
[1736109304245,0.24737,3639.1,3638.9,0.24738]
[1736109304246,3.45517,3639.1,3638.9,0.24738]
[1736109305645,3.45517,3639.1,3638.8,0.24739]
[1736109305646,5.65799443,3639.1,3638.8,0.24739]
[1736109305849,0.24739,3638.8,3638.5,0.8174]
[1736109306046,0.8285,3638.7,3638.5,0.8174]
[1736109306250,0.8285,3638.7,3638.5,1.06481]
[1736109306755,0.8285,3638.7,3638.6,0.2474]
[1736109307252,4.0363,3638.7,3638.2,0.24743]
[1736109307454,0.24742,3638.5,3638.2,0.24743]
[1736109308048,1.6847,3638.6,3638.1,0.8394]
[1736109308249,2.20282443,3638.5,3638.1,0.8394]
[1736109308446,0.24743,3638.2,3638.1,0.8394]
[1736109308650,0.24743,3638.2,3638.0,0.24744]
[1736109308851,0.835,3638.1,3638.0,0.24744]
[1736109309253,0.835,3638.1,3637.9,0.8794]
[1736109309454,0.24745,3638.0,3637.8,4.28667294]
[1736109309660,0.8862,3637.9,3637.8,4.28667294]
[1736109310149,0.8862,3637.9,3637.7,6.66541024]
[1736109310150,0.8862,3637.9,3637.7,0.24746]
[1736109310546,0.8862,3637.9,3637.6,4.28667294]
[1736109310956,0.8862,3637.9,3637.7,0.24746]
[1736109311558,0.8862,3637.9,3637.8,0.24746]
[1736109313749,3.08902443,3637.9,3637.8,0.24746]
[1736109314958,3.08902443,3637.9,3637.7,0.24746]
[1736109315156,3.08902443,3637.9,3637.8,0.24746]
[1736109315857,0.8862,3637.9,3637.8,0.24746]
[1736109316656,0.8862,3637.9,3637.7,0.24746]
[1736109317160,0.8862,3637.9,3637.8,0.24746]
[1736109317450,0.8203,3638.0,3637.4,1.7131]
[1736109317659,0.835,3638.1,3638.0,0.24745]
[1736109318054,3.2078,3638.2,3638.0,0.24745]
[1736109318352,2.15895541,3638.6,3637.4,2.33182]
[1736109318353,2.15895541,3638.6,3638.5,0.24741]
[1736109319049,3.02492443,3639.1,3638.9,0.24738]
[1736109319255,5.36675541,3639.2,3639.0,0.8348]
[1736109319654,5.36675541,3639.2,3639.1,0.24737]
[1736109320059,5.36675541,3639.2,3638.9,0.24738]
[1736109320262,3.2078,3639.2,3638.6,1.085]
[1736109320466,2.20282443,3639.3,3639.2,0.24736]
[1736109322666,2.20282443,3639.3,3638.7,3.2078]
[1736109322667,2.20282443,3639.3,3639.1,0.24736]
[1736109322868,2.20282443,3639.3,3639.2,0.24736]
[1736109323760,5.41062443,3639.6,3639.1,3.2078]
[1736109323965,0.8656,3639.8,3639.5,0.24734]
[1736109324264,1.11292,3639.8,3639.5,0.24734]
[1736109324475,0.8656,3639.8,3639.7,0.24733]
[1736109324864,0.8656,3639.8,3639.6,0.24733]
[1736109325170,0.8656,3639.8,3639.7,1.08763]
[1736109325472,2.20282443,3639.9,3639.7,1.08763]
[1736109325664,3.01122443,3639.9,3639.7,1.08763]
[1736109325858,3.01122443,3639.9,3639.7,0.8403]
[1736109326061,2.20282443,3639.9,3639.7,0.8403]
[1736109327065,2.20282443,3639.9,3639.8,0.24732]
[1736109329464,2.45014443,3639.9,3639.6,0.24734]
[1736109329673,0.844,3639.8,3639.7,0.24733]
[1736109331575,3.2078,3640.0,3639.9,0.24732]
[1736109331769,2.15895541,3640.3,3639.6,3.2078]
[1736109331965,2.15895541,3640.3,3640.0,0.2473]
[1736109332168,2.15895541,3640.3,3640.1,0.8346]
[1736109332367,2.15895541,3640.3,3640.1,1.6535]
[1736109332767,5.6984,3640.4,3640.1,1.9008]
[1736109333476,5.6984,3640.4,3640.1,0.2473]
[1736109333675,5.6984,3640.4,3639.6,3.2078]
[1736109333676,2.20282443,3640.2,3639.6,3.2078]
[1736109333876,2.20282443,3640.2,3639.9,0.24731]
[1736109334575,2.20282443,3640.2,3639.7,1.7568]
[1736109334576,2.20282443,3640.2,3640.0,0.24731]
[1736109334778,2.20282443,3640.2,3639.9,0.24731]
[1736109335178,2.20282443,3640.2,3639.7,1.7568]
[1736109335777,2.20282443,3640.2,3640.0,0.24731]
[1736109336579,2.20282443,3640.2,3639.7,1.7568]
[1736109336879,2.45012443,3640.2,3639.9,0.24732]
[1736109337381,2.20282443,3640.2,3639.9,0.24732]
[1736109338873,5.41062443,3640.2,3639.9,0.24732]
[1736109340082,5.41062443,3640.2,3640.0,0.2473]
[1736109344179,5.41062443,3640.2,3640.1,0.2473]
[1736109344382,3.2078,3640.2,3640.1,0.2473]
[1736109348182,3.2078,3640.3,3639.7,1.7568]
[1736109348483,3.2078,3640.3,3640.2,0.2473]
[1736109349475,3.2078,3640.3,3640.1,0.2473]
[1736109349676,2.20282443,3640.2,3639.7,1.7568]
[1736109349881,1.7221,3640.1,3639.7,1.7568]
[1736109350088,1.96941,3640.1,3639.8,0.24732]
[1736109350279,1.96941,3640.1,3639.7,1.7568]
[1736109350280,0.24731,3640.0,3639.7,0.8713]
[1736109350480,0.24731,3640.0,3639.7,1.11863]
[1736109350675,3.2078,3639.8,3639.4,0.8873]
[1736109350989,2.45016443,3639.6,3639.3,4.53402294]
[1736109351175,1.6922,3639.5,3639.3,4.28667294]
[1736109351383,3.2078,3639.4,3639.3,4.28667294]
[1736109351679,3.45515,3639.4,3639.3,4.28667294]
[1736109351881,3.2078,3639.4,3638.8,2.6374]
[1736109352184,0.8642,3639.3,3639.2,0.24736]
[1736109356283,0.8642,3639.3,3638.8,2.6374]
[1736109356591,0.8642,3639.3,3639.1,0.24737]
[1736109356790,3.06702443,3639.3,3639.1,0.24737]
[1736109357887,3.06702443,3639.3,3638.8,2.6374]
[1736109360188,3.06702443,3639.3,3639.2,0.24736]
[1736109360787,3.06702443,3639.3,3639.1,0.24737]
[1736109361178,3.06702443,3639.3,3639.2,0.24736]
[1736109363280,3.06702443,3639.3,3639.0,0.24737]
[1736109363486,3.06702443,3639.3,3639.1,0.24737]
[1736109363684,3.06702443,3639.3,3638.8,2.6374]
[1736109363878,3.06702443,3639.3,3639.2,0.24736]
[1736109364896,3.06702443,3639.3,3639.1,0.24737]
[1736109365087,3.06702443,3639.3,3638.8,2.6374]
[1736109365289,3.06702443,3639.3,3639.2,0.24736]
[1736109367497,3.06702443,3639.3,3638.8,2.6374]
[1736109367797,3.06702443,3639.3,3639.2,0.24736]
[1736109369193,3.06702443,3639.3,3638.8,2.6374]
[1736109369397,3.06702443,3639.3,3639.2,0.24736]
[1736109371591,3.06702443,3639.3,3639.1,0.24737]
[1736109373299,3.06702443,3639.3,3639.2,0.24736]
[1736109373798,3.06702443,3639.3,3639.1,0.24737]
[1736109374501,0.24737,3639.1,3638.8,0.8737]
[1736109374694,0.24737,3639.1,3638.6,4.28667294]
[1736109374695,0.2474,3638.8,3638.6,4.28667294]
[1736109374897,1.9891,3638.7,3638.6,4.28667294]
[1736109375101,2.8716,3638.7,3638.6,4.28667294]
[1736109376414,0.24741,3638.6,3638.4,0.24742]
[1736109376693,2.20282443,3638.5,3638.4,0.24742]
[1736109378497,5.03055541,3638.7,3638.3,0.8554]
[1736109378695,5.03055541,3638.7,3638.5,0.24741]
[1736109379198,2.8716,3638.7,3638.5,0.24741]
[1736109381302,0.2474,3638.6,3638.5,0.24741]
[1736109383403,6.0794,3638.7,3638.5,0.24741]
[1736109383597,3.2078,3638.7,3638.3,0.8554]
[1736109383906,3.2078,3638.7,3638.6,0.2474]
[1736109385804,0.24741,3638.5,3638.4,0.24742]
[1736109386001,0.24741,3638.5,3638.3,1.10282]
[1736109386002,0.24742,3638.4,3638.3,1.10282]
[1736109386202,1.06572,3638.4,3638.3,0.8554]
[1736109386403,0.8183,3638.4,3638.1,1.12333]
[1736109386707,3.45523,3638.2,3638.1,0.8759]
[1736109387102,5.65805443,3638.2,3637.9,1.05035]
[1736109387611,5.65805443,3638.2,3637.9,0.8029]
[1736109387612,5.41062443,3638.2,3637.9,0.8029]
[1736109387795,5.41062443,3638.2,3638.0,0.24745]
[1736109388501,3.2078,3638.2,3638.0,0.24745]
[1736109389304,3.2078,3638.2,3637.9,0.8029]
[1736109389508,3.45524,3638.2,3637.9,1.05035]
[1736109390006,5.41062443,3638.2,3637.9,0.8029]
[1736109390310,0.24744,3638.1,3637.9,0.8029]
[1736109390703,0.24745,3638.0,3637.9,0.8029]
[1736109390901,5.41062443,3638.2,3637.9,0.8029]
[1736109391407,0.24744,3638.1,3637.9,0.8029]
[1736109392307,5.65805443,3638.2,3637.9,1.05035]
[1736109392507,5.41062443,3638.2,3637.9,1.05035]
[1736109392708,0.24744,3638.1,3637.9,1.05035]
[1736109392903,5.65806443,3638.2,3637.9,1.05035]
[1736109394410,0.24744,3638.1,3637.9,1.05035]
[1736109394807,0.24744,3638.1,3637.9,0.8029]
[1736109395008,0.24746,3637.8,3637.4,1.06228]
[1736109395307,0.24746,3637.8,3637.4,1.6222]
[1736109395513,1.6855,3637.7,3637.5,0.24748]
[1736109395709,1.6855,3637.7,3637.4,1.6222]
[1736109396013,1.93297,3637.7,3637.4,1.05488]
[1736109397016,1.6855,3637.7,3637.4,0.8074]
[1736109397208,3.2078,3637.6,3637.4,0.8074]
[1736109397609,3.45527,3637.6,3637.4,0.8074]
[1736109398010,0.24748,3637.5,3637.4,0.8074]
[1736109398215,3.2078,3637.6,3637.4,0.8074]
[1736109398415,3.45528,3637.6,3637.4,0.8074]
[1736109398815,3.2078,3637.6,3637.4,0.8074]
[1736109399114,3.2078,3637.6,3637.4,1.05488]
[1736109399310,3.2078,3637.6,3637.1,0.06320595]
[1736109399507,3.2078,3637.6,3637.2,1.6602]
[1736109399814,3.45528,3637.6,3637.3,0.24749]
[1736109400014,3.2078,3637.6,3637.2,1.6602]
[1736109400210,3.2078,3637.6,3637.5,0.24748]
[1736109401514,3.2078,3638.0,3637.9,0.24745]
[1736109402419,3.2078,3638.0,3637.4,4.2918]
[1736109402609,3.45525,3638.0,3637.4,4.2918]
[1736109402811,0.8636,3637.9,3637.6,0.24747]
[1736109403215,0.8636,3637.9,3637.7,0.8579]
[1736109405211,2.45028443,3637.8,3637.7,0.8579]
[1736109406817,0.24747,3637.7,3637.4,1.33148]
[1736109407014,0.24747,3637.6,3637.3,1.11399]
[1736109407208,0.24749,3637.4,3637.1,0.06320595]
[1736109407512,0.834,3637.3,3637.1,0.87390595]
[1736109408320,0.834,3637.3,3637.1,1.12140595]
[1736109408521,0.834,3637.3,3637.1,0.87390595]
[1736109409021,0.834,3637.3,3637.2,0.2475]
[1736109410921,0.834,3637.3,3637.1,0.87390595]
[1736109411121,0.834,3637.3,3637.2,0.2475]
[1736109413522,3.2078,3637.7,3637.1,0.87390595]
[1736109413719,3.2078,3637.7,3637.6,0.24747]
[1736109414114,3.2078,3637.7,3637.5,0.24747]
[1736109414315,3.2078,3637.7,3637.4,0.24748]
[1736109414316,3.45527,3637.7,3637.4,0.24748]
[1736109416423,3.2078,3637.7,3637.1,0.87390595]
[1736109416626,3.2078,3637.7,3637.5,0.24748]
[1736109416920,3.2078,3637.7,3637.6,1.05037]
[1736109419128,3.45527,3637.7,3637.5,1.08948]
[1736109419423,0.24749,3637.5,3637.3,4.55129411]
[1736109419923,2.5394,3637.6,3637.2,0.8628]
[1736109420227,3.45529,3637.3,3637.2,0.8628]
[1736109420618,3.2078,3637.3,3637.1,0.06320595]
[1736109420822,3.45529,3637.3,3637.1,0.06320595]
[1736109422217,2.20282443,3637.2,3637.1,0.06320595]
[1736109422419,2.45032443,3637.2,3637.1,0.06320595]
[1736109423921,2.20282443,3637.2,3637.1,0.06320595]
[1736109424225,2.45032443,3637.2,3637.1,0.06320595]
[1736109424927,2.20282443,3637.2,3637.1,0.06320595]
[1736109425317,2.20282443,3637.2,3637.1,0.31071595]
[1736109425517,2.20282443,3637.2,3637.1,0.06320595]
[1736109425726,2.45032443,3637.2,3637.1,0.06320595]
[1736109427223,3.2078,3637.3,3637.1,0.06320595]
[1736109427521,3.2078,3637.3,3637.2,0.2475]
[1736109427727,3.2078,3637.3,3637.2,1.9169]
[1736109428629,3.45529,3637.3,3637.2,1.6694]
[1736109428830,3.2078,3637.3,3637.1,0.06320595]
[1736109429127,2.45032443,3637.2,3637.1,0.06320595]
[1736109430029,5.36301376,3637.3,3637.2,0.2475]
[1736109430229,5.36301376,3637.3,3637.2,1.0655]
[1736109430622,5.36301376,3637.3,3637.2,0.818]
[1736109430829,5.61050376,3637.3,3637.2,1.0655]
[1736109431030,5.36301376,3637.3,3637.2,1.0655]
[1736109431825,5.36301376,3637.3,3637.2,0.818]
[1736109432026,2.15521376,3637.3,3637.2,0.818]
[1736109432224,2.15521376,3637.3,3637.1,0.31070595]
[1736109432425,5.36301376,3637.3,3637.1,0.31070595]
[1736109432724,3.2078,3637.3,3637.1,0.06320595]
[1736109432928,3.2078,3637.3,3637.2,0.2475]
[1736109434232,3.48031064,3637.4,3637.2,0.2475]
[1736109434432,3.2078,3637.3,3637.2,0.2475]
[1736109434833,3.45529,3637.3,3637.1,0.06320595]
[1736109435034,0.2475,3637.2,3637.1,0.31071595]
[1736109435533,0.2475,3637.2,3637.1,0.06320595]
[1736109435932,3.2078,3637.3,3637.1,0.06320595]
[1736109436329,0.2475,3637.2,3637.1,0.06320595]
[1736109439641,0.2475,3637.2,3637.1,0.31071595]
[1736109439833,0.2475,3637.2,3637.1,0.06320595]
[1736109440543,6.68811064,3637.3,3637.2,0.2475]
[1736109440741,6.44062064,3637.3,3637.2,0.2475]
[1736109441546,3.2078,3637.3,3637.2,0.2475]
[1736109441737,3.23282064,3637.4,3637.2,0.8422]
[1736109442042,3.23282064,3637.4,3637.3,1.10919]
[1736109442642,2.16132202,3637.4,3637.3,1.10919]
[1736109444048,2.16132202,3637.7,3637.6,0.24747]
[1736109445540,2.96362202,3638.1,3637.6,6.45570616]
[1736109445746,2.96362202,3638.1,3637.9,0.24745]
[1736109445947,2.96362202,3638.1,3637.7,0.8599]
[1736109446147,2.96362202,3638.1,3638.0,0.24745]
[1736109448250,0.8023,3638.1,3638.0,0.24745]
[1736109459559,3.2078,3638.3,3637.8,0.883]
[1736109459755,3.2078,3638.3,3638.2,0.24743]
[1736109460062,2.16132202,3638.4,3638.3,0.24743]
[1736109460364,2.16132202,3638.4,3638.3,4.53923]
[1736109461363,2.16132202,3638.4,3638.3,4.53823]
[1736109461765,0.8409,3638.9,3638.8,0.24739]
[1736109463354,0.8707,3639.2,3638.5,0.8143]
[1736109463658,4.36414645,3639.3,3638.7,3.2078]
[1736109463659,3.04322202,3639.3,3638.7,3.2078]
[1736109463864,2.16132202,3639.3,3639.2,0.24736]
[1736109464459,2.16132202,3639.7,3639.2,1.6951]
[1736109464663,2.16132202,3639.7,3639.6,0.24734]
[1736109465080,2.16132202,3639.7,3639.6,1.11244]
[1736109465756,2.16132202,3639.7,3639.6,3.31526443]
[1736109465965,1.7098,3640.3,3639.6,3.06792443]
[1736109466164,1.7098,3640.3,3640.2,0.2473]
[1736109469056,2.20282443,3640.8,3640.0,0.8861]
[1736109469265,2.20282443,3640.8,3640.7,0.24726]
[1736109469461,2.20282443,3640.8,3640.5,0.24727]
[1736109471062,2.20282443,3640.8,3640.6,0.24727]
[1736109471563,2.20282443,3640.8,3640.7,0.24726]
[1736109474678,2.45008443,3640.8,3640.5,0.24727]
[1736109475077,2.20282443,3640.8,3640.6,0.24727]
[1736109475672,2.45008443,3640.8,3640.6,0.24727]
[1736109476079,2.20282443,3640.8,3640.6,0.24727]
[1736109476979,5.41062443,3640.8,3640.6,0.24727]
[1736109477682,5.65788443,3640.8,3640.6,0.24727]
[1736109477880,5.41062443,3640.8,3640.0,0.8861]
[1736109478079,5.41062443,3640.8,3640.6,0.24727]
[1736109478287,3.2078,3640.8,3640.7,0.24726]
[1736109479084,1.98195,3640.9,3640.7,0.24726]
[1736109479282,1.7347,3640.9,3640.7,0.24726]
[1736109479472,1.7347,3640.9,3640.2,0.8557]
[1736109479473,3.45506,3640.8,3640.6,0.24727]
[1736109479675,2.20282443,3640.7,3640.6,0.24727]
[1736109480282,2.45008443,3640.7,3640.5,0.24727]
[1736109480584,2.20282443,3640.7,3640.6,0.24727]
[1736109482281,3.2078,3640.8,3640.7,0.24726]
[1736109483982,5.41062443,3640.8,3640.7,0.24726]
[1736109484187,5.41062443,3640.8,3640.2,0.8557]
[1736109484389,5.41062443,3640.8,3640.4,0.24728]
[1736109484390,2.20282443,3640.5,3640.4,0.24728]
[1736109484781,3.03412443,3640.5,3640.4,0.24728]
[1736109498695,0.8313,3640.5,3640.4,0.24728]
[1736109498892,1.98195,3640.9,3640.2,0.8557]
[1736109498893,2.20282443,3640.7,3640.2,0.8557]
[1736109499088,0.8709,3640.9,3640.8,0.24726]
[1736109500807,2.20282443,3641.1,3641.0,0.24724]
[1736109501597,3.2078,3641.2,3641.1,0.24723]
[1736109503293,0.24724,3641.0,3640.9,0.24724]
[1736109503490,2.45006443,3641.0,3640.6,0.8428]
[1736109503693,2.45006443,3641.0,3640.8,0.24725]
[1736109504293,2.45006443,3641.0,3640.5,0.8136]
[1736109504294,2.20282443,3641.0,3640.5,0.8136]
[1736109504505,3.2078,3640.8,3640.7,0.24726]
[1736109508198,2.20282443,3640.9,3640.5,0.8136]
[1736109508406,4.36414645,3640.9,3640.8,0.24726]
[1736109510507,2.6150138,3640.9,3640.8,0.24726]
[1736109511707,0.41218937,3640.9,3640.8,0.24726]
[1736109512005,4.72261689,3640.9,3640.8,0.24726]
[1736109513110,4.72261689,3641.0,3640.9,0.24725]
[1736109518104,0.24726,3640.7,3640.6,4.29972231]
[1736109518304,5.65788443,3640.7,3640.6,4.29972231]
[1736109518610,5.65788443,3640.7,3640.6,1.97539231]
[1736109518809,5.65788443,3640.7,3640.6,1.72812231]
[1736109519810,0.24727,3640.6,3640.4,0.24728]
[1736109520012,1.02377,3640.6,3640.4,0.24728]
[1736109521008,1.02377,3640.6,3640.5,0.24728]
[1736109521210,0.7765,3640.6,3640.5,0.24728]
[1736109522310,5.51082312,3640.6,3640.5,0.24728]
[1736109523411,1.1887231,3640.6,3640.5,0.24728]
[1736109524507,5.51082312,3640.6,3640.5,0.24728]
[1736109527112,5.75809312,3640.6,3640.4,0.24728]
[1736109527313,0.24729,3640.3,3640.1,0.2473]
[1736109527517,2.20282443,3640.2,3640.1,0.2473]
[1736109528616,2.61504753,3640.2,3639.9,2.4348]
[1736109528919,2.45013443,3640.0,3639.9,2.4348]
[1736109530123,7.18445755,3640.0,3639.9,2.4348]
[1736109530621,7.18445755,3640.0,3639.9,0.7923]
[1736109531314,2.86235753,3640.0,3639.9,0.7923]
[1736109531514,2.61504753,3640.0,3639.9,0.7923]
[1736109531712,2.61504753,3640.0,3639.9,1.03962]
[1736109531917,2.61504753,3640.0,3639.9,0.7923]
[1736109532418,3.65160064,3640.0,3639.9,1.03962]
[1736109534126,2.15924668,3640.0,3639.9,1.03962]
[1736109535223,2.15924668,3640.1,3640.0,0.24731]
[1736109535729,2.15924668,3640.1,3640.0,1.05311]
[1736109539332,0.24731,3640.0,3639.9,0.7923]
[1736109539635,6.43133443,3640.0,3639.9,0.7923]
[1736109540523,4.22851,3640.0,3639.9,1.03962]
[1736109541334,7.46788754,3640.0,3639.9,1.03962]
[1736109542132,7.46788754,3640.0,3639.9,0.7923]
[1736109543830,7.46788754,3640.0,3639.9,1.03962]
[1736109544235,4.26008754,3640.0,3639.9,1.03962]
[1736109544437,7.46788754,3640.0,3639.9,1.03962]
[1736109545332,4.22851,3640.0,3639.9,1.03962]
[1736109545932,1.02071,3640.0,3639.9,1.03962]
[1736109546132,4.22851,3640.0,3639.9,1.03962]
[1736109547525,1.02071,3640.0,3639.9,1.03962]
[1736109547727,3.9812,3640.0,3639.6,0.8132]
[1736109547928,2.45015443,3639.7,3639.6,0.8132]
[1736109548130,2.45015443,3639.7,3639.5,0.7731]
[1736109548328,3.45514,3639.6,3639.5,0.7731]
[1736109548532,3.45514,3639.6,3639.5,1.02044]
[1736109549837,3.45514,3639.6,3639.5,0.7731]
[1736109551341,3.2078,3639.6,3639.5,0.7731]
[1736109551545,5.36529583,3639.6,3639.5,1.02044]
[1736109554141,3.2078,3639.6,3639.5,1.02044]
[1736109555240,3.45514,3639.6,3639.5,0.7731]
[1736109555742,3.2078,3639.6,3639.5,0.7731]
[1736109555938,3.2078,3639.6,3639.1,3.2078]
[1736109556151,2.20282443,3639.2,3639.1,3.45517]
[1736109556443,2.20282443,3639.2,3639.1,0.24737]
[1736109556642,2.45018443,3639.2,3639.0,0.24737]
[1736109557543,0.24737,3639.1,3638.9,2.64938]
[1736109558043,2.45019443,3639.2,3639.0,0.24738]
[1736109558445,2.20282443,3639.2,3638.9,2.402]
[1736109558645,2.20282443,3639.2,3639.1,0.24737]
[1736109558846,4.36032026,3639.2,3639.1,0.24737]
[1736109560144,2.20282443,3639.2,3639.1,0.24737]
[1736109561245,2.15749583,3639.3,3639.2,0.24736]
[1736109561448,0.90609583,3639.3,3639.2,0.24736]
[1736109562743,3.2078,3639.7,3639.6,0.24734]
[1736109563750,2.45014443,3639.9,3639.0,6.45570616]
[1736109563952,2.45014443,3639.9,3639.7,0.24733]
[1736109564145,2.20282443,3639.9,3639.7,0.24733]
[1736109564643,2.20282443,3639.9,3639.8,0.7619]
[1736109565440,2.45014443,3639.9,3639.8,0.7619]
[1736109566449,2.20282443,3639.9,3639.8,1.00922]
[1736109566645,2.20282443,3639.9,3639.8,0.7619]
[1736109567150,2.20282443,3639.9,3639.8,1.00922]
[1736109567649,2.20282443,3639.9,3639.8,0.7619]
[1736109567650,2.45014443,3639.9,3639.8,0.7619]
[1736109568150,5.65794443,3639.9,3639.8,0.7619]
[1736109568847,0.24733,3639.8,3639.6,0.24734]
[1736109569149,0.8142,3639.7,3639.6,0.24734]
[1736109569346,1.6237,3639.7,3639.6,0.24734]
[1736109573756,1.6237,3639.7,3639.2,0.7766]
[1736109573957,1.6237,3639.7,3639.6,0.24734]
[1736109574447,4.86307754,3639.7,3639.6,0.24734]
[1736109578759,4.86307754,3639.7,3639.2,0.7766]
[1736109579054,4.86307754,3639.7,3639.2,1.02396]
[1736109579055,0.99727295,3639.3,3639.2,1.02396]
[1736109581057,0.24735,3639.4,3639.2,1.02396]
[1736109581557,8.90431331,3639.5,3639.3,0.24736]
[1736109582755,3.23937754,3639.4,3639.3,0.24736]
[1736109583956,3.65173616,3639.4,3639.3,0.24736]
[1736109588160,8.65696331,3639.5,3639.4,0.24735]
[1736109589264,9.06931243,3639.5,3639.4,0.24735]
[1736109591066,5.86151243,3639.5,3639.4,0.24735]
[1736109594669,2.62213489,3639.5,3639.4,0.24735]
[1736109595177,0.41234912,3639.5,3639.4,0.24735]
[1736109597075,3.24177616,3639.6,3639.5,0.24734]
[1736109603075,4.23884911,3639.6,3639.5,0.24734]
[1736109604385,4.65119823,3639.6,3639.5,0.24734]
[1736109605483,1.40942207,3639.6,3639.5,0.24734]
[1736109606979,0.99707295,3639.6,3639.5,0.24734]
[1736109607788,1.74877295,3639.6,3639.5,0.24734]
[1736109607986,2.16112207,3639.6,3639.5,0.24734]
[1736109608782,0.24734,3639.5,3639.4,0.24734]
[1736109609085,0.24734,3639.5,3639.2,7.47966616]
[1736109609086,0.99707295,3639.5,3639.2,7.47966616]
[1736109609280,4.45223295,3639.3,3639.2,7.23230616]
[1736109609487,4.45223295,3639.3,3639.2,7.47966616]
[1736109609786,4.45223295,3639.3,3639.2,7.23230616]
[1736109610187,4.45223295,3639.3,3639.2,6.45570616]
[1736109610580,0.24738,3639.0,3638.9,6.45570616]
[1736109610782,1.24445295,3639.0,3638.9,6.45570616]
[1736109611181,0.765,3639.1,3638.9,6.45570616]
[1736109611381,0.765,3639.1,3639.0,0.24738]
[1736109612689,1.76207295,3639.1,3639.0,0.24738]
[1736109613083,6.49764346,3639.1,3639.0,0.24738]
[1736109615191,6.49764346,3639.1,3638.4,6.45570616]
[1736109615384,0.99707295,3638.5,3638.4,8.23872616]
[1736109615588,4.20487295,3638.5,3638.4,8.23872616]
[1736109615992,5.28328295,3638.5,3638.4,6.45570616]
[1736109616291,6.08058295,3638.5,3638.4,6.45570616]
[1736109616793,0.24743,3638.3,3638.1,0.7643]
[1736109616986,1.24450295,3638.3,3638.1,0.7643]
[1736109617495,0.99707295,3638.3,3638.1,1.01173]
[1736109618396,1.24450295,3638.3,3638.1,0.7643]
[1736109619092,0.99707295,3638.3,3638.1,0.7643]
[1736109619295,0.99707295,3638.3,3638.1,1.01174]
[1736109619892,0.99707295,3638.3,3638.2,0.24743]
[1736109621600,3.24153633,3638.6,3638.5,0.24741]
[1736109622295,0.99707295,3638.7,3638.6,0.2474]
[1736109622491,0.99707295,3638.7,3638.1,3.9721]
[1736109622796,0.99707295,3638.5,3638.1,3.9721]
[1736109623096,0.99707295,3638.5,3638.4,0.24742]
[1736109624991,0.99707295,3638.5,3638.3,0.24742]
[1736109625193,0.99707295,3638.4,3638.3,0.24742]
[1736109628095,0.99707295,3638.4,3638.1,3.9721]
[1736109628293,0.99707295,3638.2,3638.1,0.7643]
[1736109628696,0.99707295,3638.2,3638.1,1.01174]
[1736109633198,0.99707295,3638.3,3637.9,0.7713]
[1736109633402,0.99707295,3638.0,3637.9,1.01875]
[1736109633805,1.80007295,3638.0,3637.9,1.01875]
[1736109635007,0.803,3638.0,3637.9,1.01875]
[1736109645511,0.797,3638.3,3638.2,0.24743]
[1736109645818,1.5387,3638.3,3638.2,0.24743]
[1736109646209,5.41921016,3638.4,3637.9,0.7713]
[1736109646210,5.41921016,3638.4,3638.3,0.24743]
[1736109646911,2.21141016,3638.4,3638.3,0.24743]
[1736109655119,0.99774578,3638.4,3638.3,0.24743]
[1736109656811,0.99774578,3638.4,3638.3,1.06403]